fUST/lending_fUST_20250910
["ID","MTS","AMOUNT","RATE_DAILY","PERIOD"]
[384645826,1757495444572,-151.0,0.000228,9]
[384645828,1757495444583,-151.0,0.000228,7]
[384645830,1757495444593,-151.0,0.000228,7]
[384645832,1757495444604,-151.0,0.000228,7]
[384645834,1757495444615,-339.281847,0.000228,7]
[384645836,1757495444626,-339.281847,0.000228,7]
[384645839,1757495444637,-339.281847,0.000228,7]
[384645841,1757495444651,-339.281847,0.000228,7]
[384645843,1757495444662,-151.0,0.000228,7]
[384645845,1757495444673,-2200.0,0.00022808,2]
[384645847,1757495444685,-399.92,0.00022821,2]
[384645850,1757495444695,-9140.57719484,0.00022892,2]
[384645852,1757495444706,-151.0,0.00022892,7]
[384645854,1757495444717,-151.0,0.00022892,7]
[384645856,1757495444728,-151.0,0.00022892,7]
[384645858,1757495444740,-205.3789,0.00022892,7]
[384645860,1757495444751,-722.21607,0.000229,3]
[384645862,1757495444762,-2000.0,0.00023,2]
[384645864,1757495444772,-722.21607,0.00023186,2]
[384645866,1757495444784,-722.21607,0.00023216,20]
[384645868,1757495444795,-9140.57719484,0.00023319,2]
[384645871,1757495444806,-357.84785817,0.00023412,2]
[384645873,1757495444816,-722.21607,0.00023425,3]
[384645875,1757495444827,-271.7,0.00023443,4]
[384645877,1757495444838,-399.92,0.00023642,2]
[384645879,1757495444849,-1000.0,0.00023731,5]
[384645881,1757495444860,-9140.57719484,0.00023747,2]
[384645883,1757495444871,-151.0,0.000239,10]
[384645885,1757495444882,-2200.0,0.00023904,2]
[384645887,1757495444894,-722.21607,0.00023931,20]
[384645890,1757495444905,-722.21607,0.0002395,3]
[384645892,1757495444916,-2000.0,0.00024,2]
[384645894,1757495444927,-2152.17,0.00024,7]
[384645896,1757495444938,-233.08191698,0.00024,7]
[384645898,1757495444949,-417.15472785,0.00024,3]
[384645900,1757495444959,-217.67150996,0.00024,7]
[384645902,1757495444971,-501.02140544,0.00024174,2]
[384645904,1757495444982,-2002.08153615,0.00024174,2]
[384645906,1757495444993,-9140.57719484,0.00024174,2]
[384645909,1757495445005,-558.77319389,0.0002419,2]
[384645911,1757495445016,-271.7,0.00024222,5]
[384645913,1757495445027,-151.0,0.000243,9]
[384645915,1757495445039,-409.0,0.00024364,2]
[384645917,1757495445050,-64262.54,0.000244,7]
[384645919,1757495445061,-1000.0,0.00024421,20]
[384645936,1757495445215,-492.0,0.00024421,20]
[384645938,1757495445225,-399.92,0.00024463,2]
[384645940,1757495445235,-722.21607,0.00024475,3]
[384645942,1757495445244,-4000.0,0.00024498,4]
[384645944,1757495445254,-3874.29,0.000245,7]
[384645946,1757495445264,-649.0,0.000245,2]
[384645948,1757495445275,-9140.57719484,0.00024602,2]
[384645950,1757495445284,-722.21607,0.00024647,20]
[384645952,1757495445293,-5000.0,0.00024658,10]
[384645954,1757495445302,-150.0,0.00024658,2]
[384645956,1757495445311,-200.0,0.00024658,15]
[384645958,1757495445320,-380.0,0.00024658,2]
[384645960,1757495445330,-175.27875813,0.000247,2]
[384645962,1757495445340,-151.0,0.000248,7]
[384645964,1757495445349,-151.0,0.000248,7]
[384645967,1757495445359,-151.0,0.000248,7]
[384645969,1757495445368,-151.0,0.000248,7]
[384645972,1757495445379,-151.0,0.000248,7]
[384645974,1757495445388,-151.0,0.000248,7]
[384645976,1757495445398,-339.281847,0.000248,7]
[384645978,1757495445407,-339.281847,0.000248,7]
[384645981,1757495445416,-339.281847,0.000248,7]
[384645983,1757495445425,-339.281847,0.000248,7]
[384645985,1757495445434,-40986.92988,0.000248,2]
[384645987,1757495445443,-2902.80235007,0.0002482,2]
[384645989,1757495445452,-150.0,0.00024873,2]
[384645991,1757495445462,-1304.554952,0.0002488,5]
[384645993,1757495445471,-10574.44036188,0.000249,7]
[384645995,1757495445480,-151.0,0.000249,7]
[384645998,1757495445489,-151.0,0.000249,7]
[384646000,1757495445498,-151.0,0.000249,7]
[384646002,1757495445507,-151.0,0.000249,7]
[384646004,1757495445517,-151.0,0.000249,7]
[384646006,1757495445526,-151.0,0.000249,7]
[384646008,1757495445535,-1000.0,0.000249,5]
[384646010,1757495445544,-339.281847,0.000249,7]
[384646012,1757495445553,-339.281847,0.000249,7]
[384646014,1757495445563,-339.281847,0.000249,7]
[384646016,1757495445572,-339.281847,0.000249,7]
[384646018,1757495445581,-109932.56755088,0.000249,2]
[384646022,1757495445611,-5082.42012,0.000249,2]
[384646024,1757495445623,-6318.4,0.000249,2]
[384646057,1757495445935,-931.12423535,0.000249,2]
[384646082,1757495446159,-5849.44260766,0.000249,2]
[384646084,1757495446171,-111758.2185312,0.000249,2]
[384646086,1757495446183,-1346.99539939,0.000249,2]
[384646967,1757495500798,409.255773,0.00025,30]
[384647098,1757496048267,180.03,0.0002489,120]
[384647099,1757496048300,221.64,0.0002489,120]
[384647100,1757496052068,203.24,0.00024,120]
[384647109,1757496092272,200.0,0.00025959,120]
[384647110,1757496102518,346.015164,0.00025,30]
[384647111,1757496102824,346.015164,0.00025,30]
[384647112,1757496103122,346.015164,0.00025,30]
[384647113,1757496103442,346.015164,0.00025,30]
[384647114,1757496103810,346.015164,0.00025,30]
[384647115,1757496121250,195.0,0.00027397,120]
[384647117,1757496210873,200.0,0.00026785,120]
[384647118,1757496232174,2100.174594,0.00027397,120]
[384647119,1757496272285,200.0,0.00027203,120]
[384647120,1757496298612,150.0,0.00024,120]
[384647121,1757496450977,200.0,0.00025043,120]
[384647122,1757496451115,-4769.65093213,0.00013497,2]
[384647123,1757496451137,-159.64948402,0.00013598,2]
[384647124,1757496451157,-1200.0,0.00013696,2]
[384647125,1757496451179,-300.0,0.00013697,2]
[384647126,1757496451201,-1200.0,0.00013697,2]
[384647127,1757496451221,-300.0,0.00013697,2]
[384647128,1757496451242,-486.9,0.00013698,2]
[384647129,1757496451262,-480.0,0.00013698,2]
[384647130,1757496451282,-480.0,0.00013698,2]
[384647131,1757496451303,-480.0,0.00013698,2]
[384647132,1757496451323,-480.0,0.00013698,2]
[384647133,1757496451343,-480.0,0.00013698,2]
[384647134,1757496451364,-480.0,0.00013698,2]
[384647135,1757496451384,-480.0,0.00013698,2]
[384647136,1757496451405,-480.0,0.00013698,2]
[384647137,1757496451426,-480.0,0.00013698,2]
[384647138,1757496451446,-480.0,0.00013698,2]
[384647139,1757496451467,-333.83923409,0.00013698,2]
[384647140,1757496468765,227.30625816,0.000259,120]
[384647142,1757496511130,200.0,0.0002703,120]
[384647143,1757496513056,393.20246405,0.00025,120]
[384647144,1757496515724,415.64617041,0.00025,120]
[384647145,1757496515796,168.02792406,0.00027397,120]
[384647146,1757496622779,335.04743,0.00027,120]
[384647173,1757496632342,-157.25164294,0.00013598,2]
[384647174,1757496632352,-342.74835706,0.00013698,2]
[384647176,1757496632510,-137.25164294,0.00013698,2]
[384647177,1757496632519,-362.74835706,0.00013698,2]
[384647185,1757496635438,204.12193,0.00027,120]
[384647199,1757496638407,-117.25164294,0.00013698,2]
[384647200,1757496638417,-480.0,0.00013698,2]
[384647201,1757496638426,-480.0,0.00013698,2]
[384647202,1757496638435,-480.0,0.00013698,2]
[384647203,1757496638444,-480.0,0.00013698,2]
[384647204,1757496638454,-480.0,0.00013698,2]
[384647205,1757496638463,-480.0,0.00013698,2]
[384647206,1757496638472,-480.0,0.00013698,2]
[384647207,1757496638482,-480.0,0.00013698,2]
[384647208,1757496638491,-480.0,0.00013698,2]
[384647209,1757496638502,-480.0,0.00013698,2]
[384647210,1757496638512,-480.0,0.00013698,2]
[384647211,1757496638522,-480.0,0.00013698,2]
[384647212,1757496638531,-480.0,0.00013698,2]
[384647213,1757496638540,-480.0,0.00013698,2]
[384647214,1757496638549,-480.0,0.00013698,2]
[384647215,1757496638559,-480.0,0.00013698,2]
[384647216,1757496638568,-480.0,0.00013698,2]
[384647217,1757496638579,-480.0,0.00013698,2]
[384647218,1757496638589,-480.0,0.00013698,2]
[384647219,1757496638599,-480.0,0.00013698,2]
[384647220,1757496638607,-480.0,0.00013698,2]
[384647221,1757496638616,-480.0,0.00013698,2]
[384647222,1757496638625,-480.0,0.00013698,2]
[384647223,1757496638636,-480.0,0.00013698,2]
[384647224,1757496638646,-480.0,0.00013698,2]
[384647225,1757496638658,-480.0,0.00013698,2]
[384647226,1757496638667,-480.0,0.00013698,2]
[384647227,1757496638678,-480.0,0.00013698,2]
[384647228,1757496638687,-480.0,0.00013698,2]
[384647229,1757496638697,-480.0,0.00013698,2]
[384647230,1757496638711,-480.0,0.00013698,2]
[384647231,1757496638722,-480.0,0.00013698,2]
[384647232,1757496638731,-480.0,0.00013698,2]
[384647233,1757496638740,-480.0,0.00013698,2]
[384647234,1757496638749,-480.0,0.00013698,2]
[384647235,1757496638759,-480.0,0.00013698,2]
[384647236,1757496638768,-480.0,0.00013698,2]
[384647237,1757496638777,-480.0,0.00013698,2]
[384647238,1757496638787,-333.09829953,0.00013698,2]
[384647239,1757496638799,-146.90170047,0.00013698,2]
[384647240,1757496638808,-480.0,0.00013698,2]
[384647241,1757496638817,-480.0,0.00013698,2]
[384647242,1757496638826,-480.0,0.00013698,2]
[384647243,1757496638836,-116.66006216,0.00013698,2]
[384647244,1757496638847,-363.33993784,0.00013698,2]
[384647245,1757496638856,-26.85963612,0.00013698,2]
[384647290,1757496640200,-453.14036388,0.00013698,2]
[384647292,1757496640210,-480.0,0.00013698,2]
[384647294,1757496640219,-69.38346945,0.00013698,2]
[384647299,1757496640255,-410.61653055,0.00013698,2]
[384647301,1757496640264,-480.0,0.00013698,2]
[384647303,1757496640274,-480.0,0.00013698,2]
[384647305,1757496640283,-480.0,0.00013698,2]
[384647307,1757496640292,-480.0,0.00013698,2]
[384647309,1757496640302,-480.0,0.00013698,2]
[384647311,1757496640311,-480.0,0.00013698,2]
[384647313,1757496640320,-480.0,0.00013698,2]
[384647315,1757496640329,-480.0,0.00013698,2]
[384647317,1757496640339,-480.0,0.00013698,2]
[384647319,1757496640347,-480.0,0.00013698,2]
[384647321,1757496640357,-480.0,0.00013698,2]
[384647323,1757496640366,-480.0,0.00013698,2]
[384647325,1757496640375,-480.0,0.00013698,2]
[384647327,1757496640384,-297.77,0.00013698,2]
[384647329,1757496640394,-480.0,0.00013698,2]
[384647330,1757496640403,-480.0,0.00013698,2]
[384647332,1757496640413,-480.0,0.00013698,2]
[384647335,1757496640423,-480.0,0.00013698,2]
[384647337,1757496640432,-500.0,0.00013698,2]
[384647339,1757496640442,-480.0,0.00013698,2]
[384647340,1757496640451,-480.0,0.00013698,2]
[384647343,1757496640461,-480.0,0.00013698,2]
[384647345,1757496640470,-480.0,0.00013698,2]
[384647347,1757496640479,-480.704085,0.00013699,2]
[384647349,1757496640488,-480.0,0.0001397,2]
[384647351,1757496640498,-480.0,0.0001397,2]
[384647353,1757496640507,-497.88283423,0.0001397,2]
[384647355,1757496640516,-480.0,0.0001397,2]
[384647357,1757496640525,-480.0,0.0001397,2]
[384647359,1757496640535,-480.0,0.0001397,2]
[384647361,1757496640544,-417.08,0.0001397,2]
[384647363,1757496640554,-517.54966943,0.0001397,2]
[384647365,1757496640563,-491.42334253,0.0001397,2]
[384647367,1757496640573,-300.0,0.00013971,2]
[384647369,1757496640582,-300.0,0.00013971,2]
[384647371,1757496640592,-300.0,0.00013971,2]
[384647373,1757496640601,-300.0,0.00013971,2]
[384647375,1757496640611,-300.0,0.00013971,2]
[384647377,1757496640621,-300.0,0.00013971,2]
[384647379,1757496640630,-300.0,0.00013971,2]
[384647381,1757496640640,-300.0,0.00013971,2]
[384647383,1757496640649,-300.0,0.00013971,2]
[384647385,1757496640658,-300.0,0.00013971,2]
[384647387,1757496640668,-300.0,0.00013971,2]
[384647389,1757496640677,-300.0,0.00013971,2]
[384647391,1757496640685,-300.0,0.00013971,2]
[384647393,1757496640694,-300.0,0.00013971,2]
[384647395,1757496640707,-300.0,0.00013971,2]
[384647397,1757496640716,-600.0,0.00013971,2]
[384647398,1757496640725,-500.0,0.00013972,2]
[384647399,1757496640735,-480.0,0.00013972,2]
[384647400,1757496640744,-195.76,0.00013972,2]
[384647401,1757496640754,-480.0,0.00013972,2]
[384647402,1757496640763,-480.0,0.00013972,2]
[384647403,1757496640773,-480.0,0.00013972,2]
[384647404,1757496640783,-480.0,0.00013972,2]
[384647405,1757496640792,-480.0,0.00013972,2]
[384647406,1757496640802,-480.0,0.00013972,2]
[384647407,1757496640811,-480.0,0.00013972,2]
[384647408,1757496640820,-480.0,0.00013972,2]
[384647409,1757496640829,-480.0,0.00013972,2]
[384647410,1757496640839,-480.0,0.00013972,2]
[384647411,1757496640848,-480.0,0.00013972,2]
[384647412,1757496640857,-480.0,0.00013972,2]
[384647413,1757496640866,-480.0,0.00013972,2]
[384647414,1757496640876,-480.0,0.00013972,2]
[384647415,1757496640885,-480.0,0.00013972,2]
[384647416,1757496640894,-480.0,0.00013972,2]
[384647417,1757496640904,-480.0,0.00013972,2]
[384647418,1757496640913,-480.0,0.00013972,2]
[384647419,1757496640923,-480.0,0.00013972,2]
[384647420,1757496640931,-480.0,0.00013972,2]
[384647421,1757496640941,-480.0,0.00013972,2]
[384647422,1757496640950,-480.0,0.00013972,2]
[384647423,1757496640960,-480.0,0.00013972,2]
[384647424,1757496640969,-480.0,0.00013972,2]
[384647425,1757496640979,-480.0,0.00013972,2]
[384647426,1757496640988,-480.0,0.00013972,2]
[384647427,1757496640997,-480.0,0.00013972,2]
[384647428,1757496641007,-480.0,0.00013972,2]
[384647429,1757496641017,-540.54,0.00013972,2]
[384647430,1757496641026,-480.0,0.00013972,2]
[384647431,1757496641036,-423.07463489,0.00013972,2]
[384647432,1757496641048,-56.92536511,0.00013972,2]
[384647433,1757496641057,-381.92760812,0.00013972,2]
[384647434,1757496641068,-98.07239188,0.00013972,2]
[384647435,1757496641078,-480.0,0.00013972,2]
[384647436,1757496641087,-399.37167662,0.00013972,2]
[384647445,1757496646023,-80.62832338,0.00013972,2]
[384647446,1757496646033,-480.0,0.00013972,2]
[384647447,1757496646043,-480.0,0.00013972,2]
[384647448,1757496646052,-472.01039653,0.00013972,2]
[384647449,1757496646063,-7.98960347,0.00013972,2]
[384647450,1757496646072,-609.36,0.00013972,2]
[384647451,1757496646081,-320.72,0.00013972,2]
[384647452,1757496646092,-480.0,0.00013972,2]
[384647453,1757496646101,-480.0,0.00013972,2]
[384647454,1757496646111,-480.0,0.00013972,2]
[384647455,1757496646120,-480.0,0.00013972,2]
[384647456,1757496646129,-480.0,0.00013972,2]
[384647457,1757496646138,-233.92635043,0.00013972,2]
[384647458,1757496646147,-193.27120004,0.00013972,2]
[384647459,1757496646159,-286.72879996,0.00013972,2]
[384647460,1757496646169,-448.42288037,0.00013973,2]
[384647461,1757496646178,-500.0,0.00014067,2]
[384647462,1757496646187,-500.0,0.00014067,2]
[384647463,1757496646196,-500.0,0.00014067,2]
[384647464,1757496646204,-193.55066648,0.00014067,2]
[384647465,1757496646214,-481.17496272,0.00014244,2]
[384647466,1757496646223,-500.0,0.00014246,2]
[384647467,1757496646232,-114.13992397,0.00014246,2]
[384647468,1757496646243,-365.86007603,0.00014246,2]
[384647469,1757496646253,-480.0,0.00014246,2]
[384647470,1757496646262,-311.76,0.00014246,2]
[384647471,1757496646271,-420.61215418,0.00014246,2]
[384647472,1757496646280,-480.0,0.00014246,2]
[384647473,1757496646289,-480.0,0.00014246,2]
[384647474,1757496646299,-480.0,0.00014246,2]
[384647475,1757496646308,-480.0,0.00014246,2]
[384647476,1757496646317,-480.0,0.00014246,2]
[384647477,1757496646327,-480.0,0.00014246,2]
[384647478,1757496646336,-141.7677698,0.00014246,2]
[384647479,1757496646351,-338.2322302,0.00014246,2]
[384647480,1757496646361,-429.0,0.00014246,2]
[384647481,1757496646371,-480.0,0.00014246,2]
[384647482,1757496646382,-480.0,0.00014246,2]
[384647483,1757496646392,-275.98,0.00014246,2]
[384647484,1757496646401,-185.9,0.00014246,2]
[384647485,1757496646411,-480.0,0.00014246,2]
[384647486,1757496646420,-500.0,0.00014278,2]
[384647487,1757496646429,-501.52711983,0.00014278,2]
[384647488,1757496646439,-501.9694036,0.00014278,2]
[384647489,1757496646449,-500.0,0.00014278,2]
[384647490,1757496646459,-500.0,0.00014278,2]
[384647491,1757496646468,-500.0,0.00014403,2]
[384647492,1757496646477,-156.69007815,0.00014403,2]
[384647493,1757496646488,-343.30992185,0.00014403,2]
[384647494,1757496646498,-500.0,0.00014403,2]
[384647495,1757496646508,-160.0,0.00014451,2]
[384647496,1757496646518,-160.0,0.00014451,2]
[384647497,1757496646527,-500.0,0.00014507,2]
[384647498,1757496646538,-220.0,0.0001452,2]
[384647499,1757496646547,-480.0,0.0001452,2]
[384647500,1757496646557,-188.3,0.0001452,2]
[384647501,1757496646566,-448.39007815,0.0001452,2]
[384647502,1757496657607,183.51227797,0.000145,9]
[384647503,1757496690469,903.85407777,0.00027397,120]
[384647504,1757496695372,353.278564,0.00025,30]
[384647505,1757496695708,353.278564,0.00025,30]
[384647506,1757496696023,353.278564,0.00025,30]
[384647507,1757496696309,353.278564,0.00025,30]
[384647508,1757496696685,353.278564,0.00025,30]
[384647509,1757496751320,200.0,0.00024251,120]
[384647510,1757496753736,185.216715,0.00025,30]
[384647511,1757496821723,1000.0,0.00024657,120]
[384647512,1757496821949,1000.0,0.00024657,120]
[384647513,1757496822205,1000.0,0.00024657,120]
[384647514,1757496822399,1000.0,0.00024657,120]
[384647515,1757496822438,1000.0,0.00024657,120]
[384647516,1757496822549,1000.0,0.00024657,120]
[384647517,1757496822699,1000.0,0.00024657,120]
[384647518,1757496822855,1000.0,0.00024657,120]
[384647519,1757496822946,1000.0,0.00024657,120]
[384647520,1757496826356,463.1785929,0.00024657,120]
[384647527,1757497233922,1575.130945,0.00027397,120]
[384647528,1757497295606,353.278564,0.00025,30]
[384647529,1757497295870,353.278564,0.00025,30]
[384647530,1757497296208,353.278564,0.00025,30]
[384647531,1757497296500,353.278564,0.00025,30]
[384647532,1757497296809,353.278564,0.00025,30]
[384647533,1757497354141,177.590131,0.00025,30]
[384647539,1757497512053,229.77649597,0.000145,9]
[384647559,1757497638116,-183.51227797,0.00013596,2]
[384647560,1757497638139,-1200.0,0.00013696,2]
[384647561,1757497638161,-1200.0,0.00013696,2]
[384647562,1757497638183,-300.0,0.00013697,2]
[384647563,1757497638206,-300.0,0.00013697,2]
[384647564,1757497638229,-300.0,0.00013697,2]
[384647565,1757497638251,-300.0,0.00013697,2]
[384647566,1757497638275,-300.0,0.00013697,2]
[384647567,1757497638296,-480.0,0.00013698,2]
[384647568,1757497638319,-480.0,0.00013698,2]
[384647569,1757497638342,-480.0,0.00013698,2]
[384647570,1757497638363,-484.05013618,0.00013698,2]
[384647571,1757497638383,-477.0105559,0.00013698,2]
[384647572,1757497638404,-480.0,0.00013698,2]
[384647573,1757497638426,-481.58384119,0.00013698,2]
[384647574,1757497638446,-480.0,0.00013698,2]
[384647575,1757497638466,-480.0,0.00013698,2]
[384647576,1757497638486,-480.0,0.00013698,2]
[384647577,1757497638507,-338.321898,0.00013698,2]
[384647591,1757497832626,-300.0,0.00013697,2]
[384647592,1757497832636,-300.0,0.00013697,2]
[384647593,1757497832645,-300.0,0.00013697,2]
[384647594,1757497832655,-1200.0,0.00013697,2]
[384647595,1757497832664,-481.31280476,0.00013698,2]
[384647596,1757497832673,-165.71128889,0.00013698,2]
[384647597,1757497832682,-480.0,0.00013698,2]
[384647598,1757497832692,-480.0,0.00013698,2]
[384647599,1757497832701,-200.04,0.00013698,2]
[384647600,1757497832710,-480.0,0.00013698,2]
[384647601,1757497832720,-480.0,0.00013698,2]
[384647602,1757497832729,-480.0,0.00013698,2]
[384647603,1757497832739,-318.24,0.00013698,2]
[384647604,1757497832748,-312.93913249,0.00013698,2]
[384647605,1757497832758,-480.0,0.00013698,2]
[384647606,1757497832767,-343.67693632,0.00013698,2]
[384647607,1757497832776,-490.32980837,0.00013698,2]
[384647608,1757497832786,-480.0,0.00013698,2]
[384647609,1757497832795,-480.0,0.00013698,2]
[384647610,1757497832804,-537.44,0.00013698,2]
[384647611,1757497832814,-553.94,0.00013698,2]
[384647612,1757497832824,-480.0,0.00013698,2]
[384647614,1757497832833,-480.0,0.00013698,2]
[384647615,1757497832843,-480.0,0.00013698,2]
[384647616,1757497832852,-240.47,0.00013698,2]
[384647617,1757497832862,-480.0,0.00013698,2]
[384647618,1757497832871,-113.10774731,0.00013698,2]
[384647620,1757497832882,-366.89225269,0.00013698,2]
[384647622,1757497832891,-480.0,0.00013698,2]
[384647624,1757497832900,-153.10774731,0.00013698,2]
[384647626,1757497832912,-326.89225269,0.00013698,2]
[384647628,1757497832921,-480.0,0.00013698,2]
[384647631,1757497832930,-480.0,0.00013698,2]
[384647633,1757497832939,-480.0,0.00013698,2]
[384647634,1757497832948,-480.0,0.00013698,2]
[384647635,1757497832957,-322.99557535,0.00013698,2]
[384647636,1757497832966,-480.0,0.00013698,2]
[384647637,1757497832976,-480.0,0.00013698,2]
[384647638,1757497832985,-480.0,0.00013698,2]
[384647639,1757497832994,-480.0,0.00013698,2]
[384647640,1757497833004,-480.0,0.00013698,2]
[384647641,1757497833013,-524.81091389,0.00013698,2]
[384647642,1757497833022,-480.0,0.00013698,2]
[384647643,1757497833032,-480.0,0.00013698,2]
[384647644,1757497833041,-480.0,0.00013698,2]
[384647645,1757497833050,-480.0,0.00013698,2]
[384647646,1757497833059,-369.01998307,0.00013698,2]
[384647647,1757497833076,-110.98001693,0.00013698,2]
[384647648,1757497833085,-480.0,0.00013698,2]
[384647649,1757497833094,-480.0,0.00013698,2]
[384647650,1757497833103,-409.02000807,0.00013698,2]
[384647651,1757497833115,-77.42960071,0.00013698,2]
[384647652,1757497833124,-480.0,0.00013698,2]
[384647653,1757497833133,-240.56987901,0.00013698,2]
[384647654,1757497833142,-480.0,0.00013698,2]
[384647655,1757497833151,-480.0,0.00013698,2]
[384647656,1757497833160,-480.0,0.00013698,2]
[384647657,1757497833169,-480.0,0.00013698,2]
[384647658,1757497833178,-480.0,0.00013698,2]
[384647659,1757497833188,-480.0,0.00013698,2]
[384647660,1757497833197,-480.0,0.00013698,2]
[384647661,1757497833206,-480.0,0.00013698,2]
[384647662,1757497833214,-480.0,0.00013698,2]
[384647663,1757497833223,-480.0,0.00013698,2]
[384647664,1757497833232,-480.0,0.00013698,2]
[384647665,1757497833241,-480.0,0.00013698,2]
[384647666,1757497833251,-480.0,0.00013698,2]
[384647667,1757497833260,-480.0,0.00013698,2]
[384647668,1757497833269,-481.79063773,0.00013698,2]
[384647669,1757497833279,-482.20014706,0.00013698,2]
[384647670,1757497833288,-409.79368947,0.00013698,2]
[384647671,1757497833300,-70.20631053,0.00013698,2]
[384647672,1757497833310,-380.83805411,0.00013698,2]
[384647681,1757497838421,-1011.7194644,0.0001356,2]
[384647684,1757497840409,-1055.265053,0.0001356,2]
[384647685,1757497840418,-99.16194589,0.00013698,2]
[384647686,1757497840428,-480.0,0.00013698,2]
[384647687,1757497840438,-521.05,0.00013698,2]
[384647688,1757497840448,-480.0,0.00013698,2]
[384647689,1757497840457,-480.0,0.00013698,2]
[384647690,1757497840468,-5453.66,0.00013698,2]
[384647691,1757497840477,-480.0,0.00013698,2]
[384647692,1757497840487,-480.0,0.00013698,2]
[384647693,1757497840496,-480.0,0.00013698,2]
[384647694,1757497840507,-85.71199557,0.00013698,2]
[384647695,1757497840520,-394.28800443,0.00013698,2]
[384647697,1757497840530,-225.280553,0.00013698,2]
[384647698,1757497840539,-480.0,0.00013698,2]
[384647699,1757497840549,-480.0,0.00013698,2]
[384647700,1757497840558,-480.0,0.00013698,2]
[384647701,1757497840567,-480.0,0.00013698,2]
[384647702,1757497840577,-480.0,0.00013698,2]
[384647703,1757497840586,-480.0,0.00013698,2]
[384647704,1757497840596,-480.0,0.00013698,2]
[384647705,1757497840605,-336.43144257,0.00013698,2]
[384647723,1757497845545,-143.56855743,0.00013698,2]
[384647724,1757497845555,-271.5057615,0.00013698,2]
[384647725,1757497845704,-208.4942385,0.00013698,2]
[384647726,1757497845714,-480.0,0.00013698,2]
[384647727,1757497845723,-123.45400646,0.00013698,2]
[384647728,1757497845734,-356.54599354,0.00013698,2]
[384647729,1757497845744,-2449.31111867,0.00013698,2]
[384647730,1757497845754,-456.66888,0.00013699,2]
[384647731,1757497845763,-300.0,0.00013971,2]
[384647732,1757497845773,-300.0,0.00013971,2]
[384647733,1757497845782,-300.0,0.00013971,2]
[384647734,1757497845791,-300.0,0.00013971,2]
[384647735,1757497845801,-300.0,0.00013971,2]
[384647736,1757497845810,-300.0,0.00013971,2]
[384647737,1757497845819,-113.92147633,0.00013971,2]
[384647741,1757497846495,-186.07852367,0.00013971,2]
[384647742,1757497846506,-300.0,0.00013971,2]
[384647743,1757497846517,-300.0,0.00013971,2]
[384647744,1757497846527,-300.0,0.00013971,2]
[384647745,1757497846537,-300.0,0.00013971,2]
[384647746,1757497846547,-300.0,0.00013971,2]
[384647747,1757497846557,-300.0,0.00013971,2]
[384647748,1757497846568,-300.0,0.00013971,2]
[384647749,1757497846579,-300.0,0.00013971,2]
[384647750,1757497846590,-480.0,0.00013972,2]
[384647751,1757497846601,-480.0,0.00013972,2]
[384647752,1757497846610,-213.75,0.00013972,2]